bitfinex-derivatives/quotes_BTCF0:USTF0_20250207
["timestamp","ask_amount","ask_price","bid_price","bid_amount"]
[1738967653442,0.00015672,95760.0,95754.0,0.09712]
[1738967653642,0.00015672,95760.0,95754.0,0.003]
[1738967653941,0.00015672,95760.0,95755.0,0.09452]
[1738967655139,0.3608,95756.0,95755.0,0.09452]
[1738967655533,0.208836,95755.0,95754.0,0.002]
[1738967656143,0.2088441,95752.0,95747.0,0.09456]
[1738967656440,0.3608,95756.0,95741.0,0.77231672]
[1738967656441,0.2088631,95743.0,95741.0,0.77287672]
[1738967656648,0.0675,95742.0,95741.0,0.77231672]
[1738967658936,0.0705,95742.0,95741.0,0.77231672]
[1738967659246,0.0735,95742.0,95741.0,0.77231672]
[1738967659440,0.0735,95742.0,95741.0,0.61562497]
[1738967662246,0.0824377,95742.0,95741.0,0.61562497]
[1738967663143,0.0735,95742.0,95741.0,0.61562497]
[1738967663747,0.006,95742.0,95741.0,0.61562497]
[1738967665046,0.00589486,95742.0,95741.0,0.61562497]
[1738967665952,0.3608,95746.0,95745.0,0.2088578]
[1738967666145,0.15617245,95756.0,95755.0,0.208836]
[1738967666944,0.15617245,95756.0,95755.0,0.2535552]
[1738967667451,0.15617245,95756.0,95755.0,0.208836]
[1738967667638,0.15617245,95756.0,95755.0,0.25251358]
[1738967667838,0.00015672,95760.0,95759.0,0.2088273]
[1738967668150,0.00015672,95760.0,95759.0,0.2537335]
[1738967668951,0.15617245,95761.0,95759.0,0.2537335]
[1738967669245,0.15617245,95761.0,95760.0,0.0449062]
[1738967670248,0.00015672,95770.0,95760.0,0.4057062]
[1738967670455,0.00015672,95770.0,95761.0,0.0449062]
[1738967670746,0.00015672,95770.0,95762.0,0.0449062]
[1738967670947,0.00015672,95770.0,95763.0,0.0449062]
[1738967671137,0.00015672,95770.0,95760.0,0.12543552]
[1738967671138,0.3608,95768.0,95764.0,0.0449062]
[1738967671339,0.2088121,95766.0,95765.0,0.0449062]
[1738967671639,0.36156,95768.0,95755.0,0.00015663]
[1738967671843,0.3608,95768.0,95758.0,0.33426322]
[1738967672050,0.3608,95768.0,95759.0,0.04500954]
[1738967672248,0.00115672,95770.0,95759.0,0.04500954]
[1738967672448,0.00115672,95770.0,95760.0,0.04500954]
[1738967672649,0.00015672,95770.0,95761.0,0.04500954]
[1738967672965,0.003,95766.0,95762.0,0.04500954]
[1738967673153,0.15617245,95764.0,95763.0,0.04500954]
[1738967674944,0.002,95764.0,95763.0,0.04500954]
[1738967675548,0.004,95764.0,95763.0,0.04500954]
[1738967680856,0.004,95764.0,95763.0,0.25382814]
[1738967682061,0.004,95764.0,95763.0,0.04500954]
[1738967682255,0.00015672,95770.0,95763.0,0.04500954]
[1738967682462,0.00015672,95770.0,95764.0,0.25382594]
[1738967682659,0.00015672,95770.0,95765.0,0.04500954]
[1738967682962,0.00015672,95770.0,95766.0,0.04500954]
[1738967683260,0.00015672,95770.0,95764.0,0.2088164]
[1738967683261,0.00015672,95770.0,95767.0,0.04500954]
[1738967683561,0.00015672,95770.0,95768.0,0.04500954]
[1738967683757,0.00015672,95770.0,95769.0,0.04500954]
[1738967684261,0.00215672,95770.0,95769.0,0.04500954]
[1738967684461,0.00215672,95770.0,95768.0,0.2088065]
[1738967684963,0.00315672,95770.0,95768.0,0.2088065]
[1738967685157,0.00315672,95770.0,95769.0,0.04500114]
[1738967685362,0.00415672,95770.0,95769.0,0.04500114]
[1738967685562,0.00315672,95770.0,95769.0,0.04500114]
[1738967685765,0.00715672,95770.0,95769.0,0.04500114]
[1738967686361,0.00715672,95770.0,95763.0,0.2088175]
[1738967686560,0.00715672,95770.0,95764.0,0.04499849]
[1738967686859,0.00715672,95770.0,95765.0,0.04499849]
[1738967687061,0.00715672,95770.0,95767.0,0.2088093]
[1738967687459,0.00715672,95770.0,95768.0,0.2088072]
[1738967687653,0.00415672,95770.0,95768.0,0.2088072]
[1738967687853,0.00615672,95770.0,95768.0,0.2088072]
[1738967688064,0.00315672,95770.0,95768.0,0.2088072]
[1738967688459,0.00415672,95770.0,95768.0,0.2088072]
[1738967688866,0.00715672,95770.0,95768.0,0.2088072]
[1738967689566,0.00315672,95770.0,95768.0,0.2088072]
[1738967689765,0.00315672,95770.0,95768.0,0.2118072]
[1738967689962,0.00015672,95770.0,95768.0,0.2118072]
[1738967690166,0.00315672,95770.0,95768.0,0.2118072]
[1738967690558,0.00015672,95770.0,95768.0,0.2118072]
[1738967690754,0.00015672,95770.0,95768.0,0.2138072]
[1738967692665,0.3608,95802.0,95768.0,0.01402925]
[1738967692968,0.1951,95799.0,95793.0,0.2087525]
[1738967693667,0.1951,95799.0,95794.0,0.2087507]
[1738967694063,0.1951,95799.0,95796.0,0.2087465]
[1738967694267,0.1951,95799.0,95797.0,0.2087443]
[1738967694460,0.1961,95799.0,95797.0,0.2087443]
[1738967695061,0.1971,95799.0,95797.0,0.2087443]
[1738967695267,0.1981,95799.0,95797.0,0.2087443]
[1738967695657,0.003,95799.0,95797.0,0.2087443]
[1738967695864,0.002,95799.0,95792.0,0.3608]
[1738967696158,0.002,95799.0,95798.0,0.2087423]
[1738967697362,0.00015598,95806.0,95792.0,0.3608]
[1738967697671,0.00015598,95806.0,95805.0,0.208727]
[1738967697970,0.51697245,95823.0,95812.0,0.2087115]
[1738967698173,0.51697245,95823.0,95813.0,0.18973552]
[1738967698371,0.15617245,95823.0,95819.0,0.2086952]
[1738967698871,0.15617245,95823.0,95819.0,0.5694952]
[1738967699365,0.15617245,95823.0,95819.0,0.3608]
[1738967699565,0.15617245,95823.0,95821.0,0.2086912]
[1738967699766,0.0647,95839.0,95821.0,0.2086912]
[1738967700064,0.0647,95839.0,95822.0,0.01630412]
[1738967700266,0.0647,95839.0,95829.0,0.12543552]
[1738967701171,0.0737,95839.0,95830.0,0.01630377]
[1738967701365,0.0737,95839.0,95829.0,0.12543552]
[1738967701366,0.0737,95839.0,95831.0,0.01630377]
[1738967701672,0.0737,95839.0,95829.0,0.33411012]
[1738967701865,0.0647,95839.0,95832.0,0.2086666]
[1738967702173,0.0647,95839.0,95833.0,0.01630295]
[1738967702174,0.0737,95839.0,95833.0,0.01630295]
[1738967702359,0.0737,95839.0,95832.0,0.2086666]
[1738967702977,0.009,95839.0,95833.0,0.01630292]
[1738967703169,0.009,95839.0,95832.0,0.2086666]
[1738967703471,0.009,95839.0,95834.0,0.2086629]
[1738967704180,0.009,95839.0,95835.0,0.3608]
[1738967705969,0.008,95839.0,95835.0,0.3618]
[1738967706168,0.008,95839.0,95835.0,0.5704603]
[1738967706467,0.008,95839.0,95837.0,0.2086565]
[1738967707776,0.008,95839.0,95838.0,0.0163022]
[1738967707974,0.0643,95849.0,95837.0,0.001]
[1738967708174,0.0643,95849.0,95846.0,0.2086367]
[1738967708777,0.0643,95849.0,95847.0,0.2086349]
[1738967708970,0.0643,95849.0,95844.0,0.2086415]
[1738967709171,0.2086418,95845.0,95843.0,0.45256]
[1738967709374,0.2086418,95845.0,95843.0,0.3608]
[1738967710073,0.2086617,95835.0,95833.0,0.00015655]
[1738967711080,0.208714,95811.0,95804.0,0.3608]
[1738967711384,0.1299,95810.0,95800.0,0.12543552]
[1738967711690,0.1299,95810.0,95787.0,0.7714]
[1738967711691,0.1299,95810.0,95794.0,0.09188]
[1738967711869,0.2087345,95802.0,95787.0,0.864]
[1738967712068,0.2087411,95799.0,95787.0,0.87304287]
[1738967712372,0.2087458,95797.0,95787.0,0.864]
[1738967712888,0.2087458,95797.0,95787.0,0.77216]
[1738967713378,0.3608,95793.0,95787.0,0.77216]
[1738967713570,0.2087554,95792.0,95787.0,0.77216]
[1738967713881,0.2087554,95792.0,95789.0,0.23038812]
[1738967714375,0.2087728,95784.0,95777.0,0.56132139]
[1738967714579,0.3,95792.0,95777.0,0.56132139]
[1738967714580,0.5695859,95778.0,95777.0,0.45782139]
[1738967714974,0.208799,95772.0,95771.0,0.00084]
[1738967715172,0.3608,95777.0,95757.0,0.00156632]
[1738967715372,0.3608,95765.0,95757.0,0.00156632]
[1738967715569,0.2088277,95759.0,95757.0,0.00172295]
[1738967715880,0.2088277,95759.0,95757.0,0.00015663]
[1738967716079,0.2088549,95747.0,95740.0,0.77148]
[1738967716283,0.36136001,95765.0,95731.0,0.15476]
[1738967716284,0.3608,95753.0,95731.0,0.15476]
[1738967716479,0.2088692,95740.0,95731.0,0.15476]
[1738967716667,0.3608,95753.0,95731.0,0.09176]
[1738967716868,0.12543552,95750.0,95731.0,0.09176]
[1738967717073,0.2088787,95736.0,95731.0,0.09176]
[1738967717268,0.2088787,95736.0,95731.0,0.09191663]
[1738967717578,0.2088787,95736.0,95731.0,0.10091663]
[1738967718379,0.36136001,95737.0,95731.0,0.10091663]
[1738967718574,0.00056001,95737.0,95731.0,0.31480463]
[1738967718777,0.00916973,95748.0,95731.0,0.09991663]
[1738967719068,0.00015663,95750.0,95738.0,0.2088715]
[1738967719273,0.00015663,95750.0,95740.0,0.12543552]
[1738967719469,0.00015663,95750.0,95748.0,0.2088493]
[1738967720379,0.15617245,95767.0,95749.0,0.36113493]
[1738967720684,0.15617245,95767.0,95766.0,0.208812]
[1738967720988,0.15617245,95767.0,95766.0,0.569612]
[1738967720989,0.05257245,95767.0,95766.0,0.569612]
[1738967721172,0.01069461,95798.0,95766.0,0.7216]
[1738967721173,0.00156661,95798.0,95766.0,0.7216]
[1738967721373,0.00156661,95798.0,95786.0,0.3608]
[1738967721576,0.00156661,95798.0,95797.0,0.3608]
[1738967721988,0.00015663,95802.0,95797.0,0.3608]
[1738967722386,0.00015663,95802.0,95798.0,0.3608]
[1738967722588,0.00015663,95802.0,95799.0,0.2087381]
[1738967722781,0.15455135,95804.0,95803.0,0.2087314]
[1738967722982,0.15455135,95804.0,95803.0,0.3012114]
[1738967724380,0.00015646,95813.0,95803.0,0.09248]
[1738967724581,0.00015646,95813.0,95812.0,0.3608]
[1738967725684,0.00015646,95813.0,95812.0,0.3628]
[1738967726288,0.00015646,95813.0,95812.0,0.002]
[1738967726885,0.36991011,95813.0,95796.0,0.09308]
[1738967727193,0.5695329,95803.0,95796.0,0.09308]
[1738967728685,0.3638,95803.0,95796.0,0.09308]
[1738967728992,0.003,95803.0,95796.0,0.09308]
[1738967729195,0.003,95803.0,95801.0,0.2087339]
[1738967729491,0.004,95803.0,95802.0,0.2087336]
[1738967729991,0.004,95803.0,95802.0,0.5695336]
[1738967730896,0.001,95803.0,95802.0,0.5695336]
[1738967731386,0.001,95803.0,95802.0,0.5735336]
[1738967731588,0.00015646,95813.0,95802.0,0.5735336]
[1738967731786,0.001,95803.0,95802.0,0.5755336]
[1738967731988,0.001,95803.0,95802.0,0.5795336]
[1738967732390,0.00015646,95813.0,95802.0,0.3648]
[1738967732593,0.00015646,95813.0,95806.0,0.2087232]
[1738967732781,0.00015646,95813.0,95812.0,0.3608]
[1738967733292,0.3608,95837.0,95812.0,0.3608]
[1738967733597,0.3608,95854.0,95835.0,0.2086596]
[1738967733779,0.3608,95854.0,95840.0,0.18821891]
[1738967734487,0.2086121,95858.0,95840.0,0.18821891]
[1738967734688,0.2086121,95858.0,95838.0,0.3608]
[1738967734891,0.2086121,95858.0,95840.0,0.18821891]
[1738967735094,0.009,95854.0,95840.0,0.18921891]
[1738967735289,0.009,95854.0,95840.0,0.001]
[1738967735489,0.009,95854.0,95840.0,0.002]
[1738967736791,0.2086418,95845.0,95840.0,0.001]
[1738967736992,0.2086372,95847.0,95840.0,0.001]
[1738967737290,0.208637,95847.0,95840.0,0.001]
[1738967737900,0.208637,95847.0,95840.0,0.002]
[1738967739098,0.216637,95847.0,95840.0,0.001]
[1738967740395,0.008,95847.0,95840.0,0.001]
[1738967740601,0.2086467,95842.0,95840.0,0.001]
[1738967741795,0.2086552,95838.0,95837.0,0.00015655]
[1738967742497,0.5694552,95838.0,95837.0,0.00015655]
[1738967744604,0.5764552,95838.0,95837.0,0.00115655]
[1738967745701,0.2086907,95822.0,95819.0,0.3608]
[1738967746100,0.2086929,95821.0,95819.0,0.3608]
[1738967746296,0.2087009,95817.0,95816.0,0.0677]
[1738967746900,0.2086865,95824.0,95816.0,0.0677]
[1738967747211,0.2086865,95824.0,95822.0,0.2086896]
[1738967747705,0.00015627,95826.0,95825.0,0.2086835]
[1738967750408,0.00015627,95826.0,95825.0,0.22474812]
[1738967750610,0.00015627,95826.0,95825.0,0.2086835]
[1738967751113,0.00215627,95826.0,95820.0,0.09336]
[1738967751319,0.2086965,95819.0,95818.0,0.3608]
[1738967751612,0.2086965,95819.0,95818.0,0.3768565]
[1738967751907,0.2086965,95819.0,95818.0,0.3608]
[1738967752507,0.5694965,95819.0,95818.0,0.001]
[1738967753498,0.5694965,95819.0,95818.0,0.002]
[1738967754109,0.5694965,95819.0,95818.0,0.001]
[1738967754305,0.2087205,95808.0,95804.0,0.7716]
[1738967754505,0.5695205,95808.0,95804.0,0.77236]
[1738967756617,0.5695205,95808.0,95807.0,0.00315655]
[1738967757009,0.5695205,95808.0,95807.0,0.00415655]
[1738967757214,0.00925115,95813.0,95808.0,0.2087205]
[1738967757415,0.00925115,95813.0,95809.0,0.22502636]
[1738967757712,0.2087031,95816.0,95810.0,0.01631016]
[1738967757915,0.2087031,95816.0,95811.0,0.01631016]
[1738967758115,0.2087031,95816.0,95812.0,0.01631016]
[1738967758307,0.2087031,95816.0,95813.0,0.01631016]
[1738967758513,0.2087031,95816.0,95814.0,0.01631016]
[1738967758721,0.58146001,95819.0,95807.0,0.00215655]
[1738967758917,0.2087205,95808.0,95807.0,0.00215655]
[1738967759220,0.2087205,95808.0,95807.0,0.01846614]
[1738967760508,0.002,95816.0,95807.0,0.01646614]
[1738967760704,0.208715,95811.0,95807.0,0.00015655]
[1738967761023,0.2087205,95808.0,95807.0,0.00115655]
[1738967761408,0.2127205,95808.0,95807.0,0.00115655]
[1738967761621,0.2127205,95808.0,95807.0,0.00015655]
[1738967762120,0.2107205,95808.0,95807.0,0.00015655]
[1738967762419,0.5715205,95808.0,95807.0,0.00015655]
[1738967764514,0.5755205,95808.0,95807.0,0.00115655]
[1738967764913,0.58494088,95808.0,95807.0,0.00115655]
[1738967765421,0.3668,95808.0,95807.0,0.00115655]
[1738967766021,0.006,95808.0,95807.0,0.00115655]
[1738967766915,0.006,95808.0,95807.0,0.01746504]
[1738967767113,0.2201,95818.0,95807.0,0.01646482]
[1738967767312,0.006,95808.0,95807.0,0.20987925]
[1738967767515,0.006,95808.0,95807.0,0.22618755]
[1738967767906,0.2201,95818.0,95807.0,0.01646485]
[1738967768111,0.2201,95818.0,95811.0,0.3608]
[1738967768311,0.2201,95818.0,95812.0,0.0163083]
[1738967768513,0.2201,95818.0,95813.0,0.0163083]
[1738967768807,0.2087079,95814.0,95811.0,0.3608]
[1738967769216,0.2087079,95814.0,95807.0,0.00015655]
[1738967769817,0.2087152,95811.0,95807.0,0.00015655]
[1738967770726,0.2087194,95809.0,95807.0,0.00015655]
[1738967773514,0.2087194,95809.0,95807.0,0.00115655]
[1738967773911,0.2177194,95809.0,95807.0,0.00215655]
[1738967774617,0.22620913,95809.0,95807.0,0.00115655]
[1738967776618,0.3608,95808.0,95807.0,0.00115655]
[1738967778127,0.3608,95808.0,95807.0,0.00015655]
[1738967778426,0.3688,95808.0,95807.0,0.00115655]
[1738967778725,0.008,95808.0,95807.0,0.20987925]
[1738967779928,0.006,95808.0,95807.0,0.20987925]
[1738967780630,0.2201,95810.0,95809.0,0.2087183]
[1738967780931,0.36136001,95822.0,95820.0,0.2086941]
[1738967781126,0.3608,95822.0,95821.0,0.0629]
[1738967783019,0.3608,95822.0,95821.0,0.0639]
[1738967783020,0.3698,95822.0,95821.0,0.0639]
[1738967783224,0.3698,95822.0,95821.0,0.0649]
[1738967783626,0.57549,95822.0,95821.0,0.0649]
[1738967783825,0.57549,95822.0,95821.0,0.0639]
[1738967787322,0.57549,95822.0,95821.0,0.001]
[1738967788321,0.6668,95822.0,95799.0,0.0906]
[1738967788523,0.3608,95808.0,95781.0,0.3608]
[1738967788724,0.2087531,95793.0,95787.0,0.208765]
[1738967789026,0.2087531,95793.0,95781.0,0.3608]
[1738967789227,0.2087531,95793.0,95787.0,0.208766]
[1738967789623,0.2087531,95793.0,95781.0,0.3608]
[1738967789824,0.2087531,95793.0,95792.0,0.21032101]
[1738967790023,0.2087531,95793.0,95792.0,0.21532101]
[1738967790332,0.2097531,95793.0,95792.0,0.22232101]
[1738967790536,0.2097531,95793.0,95792.0,0.21732101]
[1738967791132,0.2107531,95793.0,95792.0,0.21032101]
[1738967791630,0.002,95793.0,95792.0,0.21032101]
[1738967793726,0.2107532,95793.0,95792.0,0.00156571]
[1738967793920,0.2087532,95793.0,95792.0,0.00156571]
[1738967794119,0.2087532,95793.0,95792.0,0.00456571]
[1738967795631,0.2087532,95793.0,95792.0,0.00256571]
[1738967795832,0.2107532,95793.0,95792.0,0.21132101]
[1738967796329,0.2107532,95793.0,95792.0,0.21032101]
[1738967796531,0.2107532,95793.0,95792.0,0.00156571]
[1738967796932,0.2097532,95793.0,95792.0,0.00156571]
[1738967799132,0.001,95793.0,95792.0,0.21032111]
[1738967799339,0.2087435,95798.0,95795.0,0.2087483]
[1738967800042,0.2087435,95798.0,95797.0,0.2087445]
[1738967800332,0.00015655,95802.0,95797.0,0.2087445]
[1738967800543,0.00015655,95802.0,95801.0,0.2087357]
[1738967801133,0.00015655,95802.0,95801.0,0.5695357]
[1738967801527,0.2266051,95816.0,95801.0,0.40505403]
[1738967801728,0.2266051,95816.0,95812.0,0.2087111]
[1738967802129,0.2266051,95816.0,95813.0,0.2087077]
[1738967802538,0.2266051,95816.0,95814.0,0.2087072]
[1738967803631,0.0259,95816.0,95814.0,0.2097072]
[1738967803940,0.2087052,95815.0,95814.0,0.2097072]
[1738967804431,0.2087052,95815.0,95814.0,0.002]
[1738967806743,0.2177052,95815.0,95814.0,0.002]
[1738967807943,0.009,95815.0,95814.0,0.002]
[1738967814145,0.009,95815.0,95814.0,0.2107074]
[1738967815532,0.009,95815.0,95814.0,0.002]
[1738967816948,0.009,95815.0,95814.0,0.01830721]
[1738967821145,0.009,95815.0,95814.0,0.002]
[1738967823058,0.009,95815.0,95814.0,0.3628]
[1738967823452,0.20884327,95824.0,95814.0,0.3628]
[1738967823453,0.00015627,95824.0,95814.0,0.3628]
[1738967823761,1e-08,95824.0,95823.0,0.2086878]
[1738967824254,1e-08,95824.0,95823.0,0.2719878]
[1738967824447,1e-08,95824.0,95823.0,0.33239694]
[1738967825151,0.00900001,95824.0,95823.0,0.33239694]
[1738967825352,0.00900001,95824.0,95823.0,0.31619476]
[1738967825849,1e-08,95824.0,95823.0,0.10750696]
[1738967826054,0.00600001,95824.0,95823.0,0.0643]
[1738967826243,0.00600001,95824.0,95823.0,0.07405226]
[1738967826646,0.00600001,95824.0,95823.0,0.28274006]
[1738967827147,0.00600001,95824.0,95823.0,0.65714939]
[1738967828648,0.0015657,95839.0,95828.0,0.2086753]
[1738967829248,0.2086667,95833.0,95823.0,0.44846159]
[1738967829856,0.2086667,95833.0,95828.0,0.001]
[1738967830059,0.0105657,95839.0,95828.0,0.001]
[1738967830757,0.0105657,95839.0,95836.0,0.3608]
[1738967830946,0.0105657,95839.0,95837.0,0.2086568]
[1738967831356,0.0015657,95839.0,95836.0,0.3608]
[1738967831858,0.0015657,95839.0,95836.0,0.3618]
[1738967832155,0.0045657,95839.0,95837.0,0.001]
[1738967832958,0.0015657,95839.0,95836.0,0.002]
[1738967833957,0.0015657,95839.0,95836.0,0.01153058]
[1738967834258,0.0015657,95839.0,95837.0,0.2086573]
[1738967834451,0.0015657,95839.0,95837.0,0.2096573]
[1738967834647,0.0045657,95839.0,95837.0,0.2106573]
[1738967835045,0.0045657,95839.0,95837.0,0.2096573]
[1738967835450,0.0045657,95839.0,95838.0,0.0677]
[1738967835851,0.0045657,95839.0,95838.0,0.08400302]
[1738967836047,0.0045657,95839.0,95838.0,0.0677]
[1738967837761,0.0045657,95839.0,95838.0,0.44480306]
[1738967837946,0.0015657,95839.0,95838.0,0.44480306]
[1738967838153,0.0045657,95839.0,95838.0,0.4295]
[1738967838460,0.0045657,95839.0,95838.0,0.44680207]
[1738967838659,0.0045657,95839.0,95838.0,0.44680254]
[1738967839164,0.0045657,95839.0,95838.0,0.4305]
[1738967839557,0.0045657,95839.0,95838.0,0.4295]
[1738967839751,0.0045657,95839.0,95838.0,0.44575323]
[1738967840553,0.0045657,95839.0,95838.0,0.44475323]
[1738967840748,0.0045657,95839.0,95829.0,0.12543443]
[1738967840971,0.7216,95830.0,95809.0,0.23045215]
[1738967841260,0.2087466,95796.0,95784.0,0.00011731]
[1738967841453,0.3608,95796.0,95784.0,0.00011731]
[1738967841655,0.2087662,95787.0,95764.0,0.62856003]
[1738967842155,0.2087662,95787.0,95777.0,0.00015655]
[1738967842350,0.2087662,95787.0,95786.0,1e-08]
[1738967842757,0.2087662,95787.0,95786.0,0.00300001]
[1738967843959,0.2087662,95787.0,95786.0,0.00400001]
[1738967844560,0.1926,95792.0,95777.0,0.00015655]
[1738967844561,0.2087858,95778.0,95777.0,0.00015655]
[1738967844769,0.5695858,95778.0,95777.0,0.00015655]
[1738967845765,0.3618,95778.0,95777.0,0.008]
[1738967845960,0.5705858,95778.0,95777.0,0.008]
[1738967847060,0.3618,95778.0,95768.0,0.00015655]
[1738967847366,0.5696054,95769.0,95768.0,0.00015655]
[1738967847566,0.2088294,95758.0,95756.0,0.00156652]
[1738967847862,0.3608,95757.0,95756.0,0.00156652]
[1738967849360,0.3658,95757.0,95732.0,0.0639]
[1738967849569,0.7216,95733.0,95732.0,0.0639]
[1738967849757,0.7216,95733.0,95732.0,0.83562]
[1738967850759,0.7216,95733.0,95732.0,0.84162]
[1738967851167,0.7216,95733.0,95732.0,0.84562]
[1738967851759,0.7226,95733.0,95732.0,0.83962]
[1738967854667,0.3618,95733.0,95732.0,0.83962]
[1738967855367,0.3608,95762.0,95732.0,1.50042]
[1738967855563,0.3608,95762.0,95760.0,0.2088232]
[1738967855758,0.3608,95762.0,95761.0,0.2003]
[1738967857067,0.3618,95762.0,95761.0,0.2003]
[1738967857368,0.005,95762.0,95761.0,0.20887219]
[1738967857762,0.011,95762.0,95761.0,0.20987219]
[1738967858563,0.00015663,95771.0,95770.0,0.2088033]
[1738967860173,0.00915663,95771.0,95770.0,0.2098033]
[1738967860576,0.00915663,95771.0,95770.0,0.2108033]
[1738967863169,0.21795773,95771.0,95770.0,0.002]
[1738967865878,0.2088057,95769.0,95761.0,0.97214]
[1738967866070,0.36995663,95771.0,95761.0,0.97214]
[1738967866269,0.37059663,95771.0,95761.0,0.97214]
[1738967866475,0.2088045,95770.0,95761.0,1.1809623]
[1738967866976,0.2088045,95770.0,95761.0,1.1819623]
[1738967867179,0.009,95769.0,95761.0,0.97414]
[1738967867487,0.2088116,95767.0,95761.0,0.97414]
[1738967868579,0.009,95770.0,95761.0,0.97414]
[1738967868881,0.009,95770.0,95761.0,1.1829624]
[1738967869373,0.3608,95762.0,95761.0,1.1829624]
[1738967869970,0.3608,95762.0,95761.0,1.1819624]
[1738967870572,0.3608,95762.0,95761.0,1.1809624]
[1738967870775,0.3608,95762.0,95761.0,1.1819624]
[1738967871077,0.3618,95762.0,95761.0,1.1819624]
[1738967872578,0.3688,95762.0,95761.0,1.1819624]
[1738967883778,0.008,95762.0,95761.0,1.1819624]
[1738967883977,0.008,95762.0,95761.0,1.24220922]
[1738967885290,0.15583269,95775.0,95774.0,0.2087946]
[1738967885490,0.15583269,95775.0,95774.0,0.2251095]
[1738967885678,0.15583269,95775.0,95774.0,0.26904946]
[1738967886195,0.15583269,95776.0,95774.0,0.26904946]
[1738967886486,0.15583269,95776.0,95775.0,0.06025486]
[1738967886685,0.15583269,95776.0,95775.0,0.0163149]
[1738967887080,0.15583269,95776.0,95775.0,0.01631338]
[1738967887786,0.15583269,95776.0,95775.0,0.01631316]
[1738967888586,0.15583269,95776.0,95775.0,0.06029031]
[1738967888983,0.00015663,95784.0,95775.0,0.06029031]
[1738967889187,0.00015663,95784.0,95783.0,0.208775]
[1738967889489,0.00015663,95784.0,95783.0,0.22508816]
[1738967889788,0.00015663,95784.0,95783.0,0.22508748]
[1738967890597,0.00015663,95784.0,95783.0,0.26910397]
[1738967891988,0.00115663,95784.0,95783.0,0.26910397]
[1738967893191,0.00115663,95784.0,95783.0,0.25279149]
[1738967894188,0.00115663,95784.0,95783.0,0.208775]
[1738967895091,0.00115663,95784.0,95783.0,0.22487976]
[1738967908200,0.00115663,95784.0,95783.0,0.208775]
[1738967915895,0.36136001,95789.0,95788.0,0.208764]
[1738967915896,0.00056001,95789.0,95788.0,0.208764]
[1738967916205,0.3608,95801.0,95785.0,0.2087691]
[1738967916410,0.3608,95801.0,95798.0,0.2087421]
[1738967917494,0.3608,95801.0,95791.0,0.08239903]
[1738967917701,0.3608,95801.0,95799.0,0.2087393]
[1738967919103,0.3658,95801.0,95799.0,0.2087393]
[1738967919502,0.3658,95801.0,95799.0,0.2097393]
[1738967919902,0.3608,95801.0,95799.0,0.2097393]
[1738967920102,0.3648,95801.0,95799.0,0.2107393]
[1738967922209,0.3648,95801.0,95799.0,0.21903705]
[1738967925206,0.3648,95801.0,95800.0,0.04405306]
[1738967925719,0.3648,95801.0,95799.0,0.21903705]
[1738967926304,0.3608,95801.0,95799.0,0.21803705]
[1738967926513,0.3658,95801.0,95800.0,0.002]
[1738967927301,0.3658,95801.0,95800.0,0.04604908]
[1738967927505,0.3658,95801.0,95800.0,0.002]
[1738967927807,0.3658,95801.0,95800.0,0.25478404]
[1738967928007,0.3658,95801.0,95800.0,0.25378404]
[1738967928503,0.005,95801.0,95800.0,0.25378404]
[1738967928814,0.005,95801.0,95800.0,0.04504614]
[1738967929317,0.005,95801.0,95800.0,0.04604614]
[1738967930018,0.005,95801.0,95800.0,0.25478404]
[1738967934030,0.005,95801.0,95800.0,0.25378404]
[1738967935106,0.00015663,95809.0,95808.0,0.2087205]
[1738967935307,0.00015663,95809.0,95808.0,0.25276664]
[1738967936623,0.00015663,95809.0,95808.0,0.25376664]
[1738967937416,0.00515663,95809.0,95808.0,0.25476664]
[1738967939321,0.00515663,95809.0,95808.0,0.2989205]
[1738967944124,0.00515663,95809.0,95808.0,0.0902]
[1738967944633,0.00515663,95809.0,95808.0,0.2107205]
[1738967944821,0.00515663,95809.0,95808.0,0.2989205]
[1738967948035,0.00515663,95809.0,95808.0,0.34290267]
[1738967950036,0.00515663,95809.0,95808.0,1.11438267]
[1738967953537,0.00515663,95809.0,95808.0,1.02618267]
[1738967953740,0.00515663,95809.0,95808.0,1.11434267]
[1738967961335,0.00156607,95827.0,95826.0,0.2086816]
[1738967961534,0.3608,95829.0,95825.0,0.08812]
[1738967961735,0.3608,95829.0,95828.0,0.2086772]
[1738967962130,0.3608,95829.0,95828.0,0.25271908]
[1738967963336,0.3658,95829.0,95828.0,0.25371908]
[1738967963538,0.3658,95829.0,95828.0,0.25471908]
[1738967963736,0.005,95829.0,95828.0,0.25471908]
[1738967968641,0.005,95829.0,95828.0,0.26297829]
[1738967972743,0.3608,95842.0,95828.0,0.05330109]
[1738967973041,0.3608,95842.0,95835.0,0.2086617]
[1738967973229,0.3608,95842.0,95836.0,0.2086584]
[1738967973633,0.3608,95842.0,95828.0,0.00925921]
[1738967973833,0.3608,95842.0,95837.0,0.2086576]
[1738967975340,0.3608,95842.0,95837.0,0.2096576]
[1738967975943,0.3608,95842.0,95841.0,0.2086489]
[1738967976630,0.3608,95842.0,95833.0,0.0521664]
[1738967976835,0.3608,95842.0,95841.0,0.2086489]
[1738967977229,0.56426001,95850.0,95832.0,0.08239903]
[1738967977431,0.5637,95850.0,95849.0,0.2086315]
[1738967978742,0.5637,95850.0,95849.0,0.2096315]
[1738967979142,0.5637,95850.0,95849.0,0.2106315]
[1738967981150,0.5637,95850.0,95849.0,0.002]
[1738967989545,0.7723293,95850.0,95849.0,0.002]
[1738967990048,0.5637,95850.0,95849.0,0.002]
[1738967993343,0.7723293,95850.0,95849.0,0.002]
[1738967998561,0.5637,95850.0,95849.0,0.002]
[1738967998763,0.5637,95850.0,95849.0,0.2106315]
[1738967999058,0.7723293,95850.0,95849.0,0.002]
[1738967999450,0.7038293,95850.0,95849.0,0.002]
[1738967999654,0.3430293,95850.0,95849.0,0.002]
[1738967999849,0.7038293,95850.0,95849.0,0.002]
[1738968002565,0.85966199,95850.0,95849.0,0.002]
[1738968003466,0.86823817,95850.0,95849.0,0.002]
[1738968004867,0.7038293,95850.0,95849.0,0.002]
[1738968006260,0.4952,95850.0,95849.0,0.002]
[1738968006564,0.3608,95850.0,95849.0,0.002]
[1738968008454,0.3608,95850.0,95849.0,0.2106315]
[1738968009359,0.0015655,95851.0,95850.0,0.2086293]
[1738968010466,0.0015655,95851.0,95850.0,0.2096293]
[1738968010770,0.0015655,95851.0,95850.0,0.2106293]